bitfinex/quotes_SOLUSD_20250626
["timestamp","ask_amount","ask_price","bid_price","bid_amount"]
[1750897209388,9.32592607,144.0,143.96,18.64964886]
[1750897209589,4.16684293,144.0,143.96,18.64964886]
[1750897209890,9.32592607,144.0,143.96,18.64964886]
[1750897210090,4.16684293,144.0,143.96,18.64964886]
[1750897210299,9.32592607,144.0,143.96,18.64964886]
[1750897210616,4.16684293,144.0,143.96,18.64964886]
[1750897210819,9.32592607,144.0,143.96,18.64964886]
[1750897211014,4.16684293,144.0,143.96,18.64964886]
[1750897211316,9.32592607,144.0,143.96,18.64964886]
[1750897211619,4.16684293,144.0,143.96,18.64964886]
[1750897211817,9.32592607,144.0,143.96,18.64964886]
[1750897211993,5.15908314,144.01,143.96,18.64964886]
[1750897212195,5.15908314,144.0,143.96,18.64964886]
[1750897212394,4.16644612,144.01,143.96,18.64964886]
[1750897212722,9.32552926,144.01,143.96,18.64964886]
[1750897212904,4.16644612,144.01,143.96,18.64964886]
[1750897213107,9.32552926,144.01,143.96,25.59593273]
[1750897213317,4.16644612,144.01,143.96,25.59593273]
[1750897213499,9.32552926,144.01,143.96,25.59593273]
[1750897213703,4.16644612,144.01,143.96,25.59593273]
[1750897214006,9.32552926,144.01,143.96,25.59593273]
[1750897214323,5.15908314,144.0,143.96,18.64964886]
[1750897215222,9.32583789,144.0,143.96,18.64964886]
[1750897215415,4.16675475,144.0,143.96,18.64964886]
[1750897215915,9.32583789,144.0,143.96,18.64964886]
[1750897216218,5.15908314,143.99,143.96,18.64964886]
[1750897218217,10.6099581,144.02,143.96,18.64964886]
[1750897218425,5.16631401,144.01,143.96,18.64964886]
[1750897218606,5.16631401,144.0,143.96,18.64964886]
[1750897218921,5.16631401,143.99,143.96,18.64964886]
[1750897219122,5.16631401,143.98,143.96,18.64964886]
[1750897219319,4.16677599,144.0,143.96,18.64964886]
[1750897219522,5.16873057,143.99,143.96,18.64964886]
[1750897219704,5.16873057,143.98,143.96,18.64964886]
[1750897220029,4.16677599,144.0,143.93,18.64964886]
[1750897220030,5.1691978,143.97,143.93,18.64964886]
[1750897220202,5.1691978,143.96,143.93,18.64964886]
[1750897220527,5.1691978,143.99,143.93,18.64964886]
[1750897220704,5.1691978,143.98,143.93,18.64964886]
[1750897220906,5.1691978,143.97,143.93,18.64964886]
[1750897221234,159.21064605,144.0,143.93,18.64964886]
[1750897221528,4.16724545,143.98,143.93,18.64964886]
[1750897221726,5.17296107,143.97,143.93,18.64964886]
[1750897221930,4.16724545,143.98,143.93,18.64964886]
[1750897222134,5.17296346,143.97,143.93,18.64964886]
[1750897222306,5.17296346,143.96,143.91,0.02]
[1750897222613,5.17296346,143.95,143.91,0.02]
[1750897222806,5.17296346,143.94,143.91,0.02]
[1750897223011,174.6,143.97,143.91,0.02]
[1750897223224,5.17451813,143.96,143.91,0.02]
[1750897223429,5.17451813,143.95,143.91,0.02]
[1750897223609,5.17451813,143.94,143.91,0.02]
[1750897223810,4.1680694,143.96,143.91,0.02]
[1750897224020,5.17396279,143.95,143.91,0.02]
[1750897224219,5.17396279,143.94,143.91,0.02]
[1750897224413,4.1680694,143.96,143.91,0.02]
[1750897224636,5.17375522,143.95,143.91,0.02]
[1750897224931,5.17375522,143.94,143.91,0.02]
[1750897225131,4.1680694,143.96,143.91,0.02]
[1750897225337,5.17492823,143.95,143.91,0.02]
[1750897225543,5.17492823,143.94,143.91,0.02]
[1750897225729,4.16818988,143.95,143.91,0.02]
[1750897226046,5.17440005,143.94,143.91,0.02]
[1750897226216,4.16818988,143.95,143.91,0.02]
[1750897226410,5.17499219,143.94,143.91,0.02]
[1750897226710,4.16818988,143.95,143.91,0.02]
[1750897226907,5.17499219,143.94,143.91,0.02]
[1750897227113,5.17620492,143.93,143.91,0.02]
[1750897227409,4.16815606,143.95,143.91,0.02]
[1750897227609,5.17579565,143.94,143.91,0.02]
[1750897227833,5.17579565,143.93,143.91,0.02]
[1750897228154,4.16815606,143.95,143.91,0.02]
[1750897228345,5.17719047,143.94,143.91,0.02]
[1750897228519,5.17719047,143.93,143.91,0.02]
[1750897228720,4.16815606,143.95,143.91,0.02]
[1750897228929,5.17683546,143.94,143.91,0.02]
[1750897229127,5.17683546,143.93,143.91,0.02]
[1750897229334,4.16815606,143.95,143.91,0.02]
[1750897229538,5.17847925,143.94,143.91,0.02]
[1750897229718,4.16815606,143.95,143.91,0.02]
[1750897229719,5.17847925,143.93,143.91,0.02]
[1750897230030,5.17847925,143.92,143.91,0.02]
[1750897230738,4.16833636,143.95,143.91,0.02]
[1750897230914,5.1796968,143.94,143.91,0.02]
[1750897231115,5.1796968,143.93,143.91,0.02]
[1750897231316,10.61150445,143.97,143.91,18.953972]
[1750897231556,5.18044762,143.96,143.92,0.28432314]
[1750897231715,5.18044762,143.95,143.92,0.28432314]
[1750897231910,4.16763439,143.97,143.92,0.28432314]
[1750897232140,5.18044181,143.96,143.92,0.28432314]
[1750897232339,5.18044181,143.95,143.93,18.64964886]
[1750897232643,5.18044181,143.94,143.93,18.64964886]
[1750897233044,5.18044181,143.94,143.93,18.933972]
[1750897233223,6.44387006,143.99,143.94,0.28432314]
[1750897233410,5.18352098,143.98,143.94,0.28432314]
[1750897233610,5.18352098,143.97,143.94,0.28432314]
[1750897233839,5.18352098,143.96,143.94,0.28432314]
[1750897234034,42.79061516,144.0,143.94,0.28432314]
[1750897234237,5.1841314,143.99,143.96,0.28432314]
[1750897234439,6.44387006,144.02,143.97,7.23021464]
[1750897234614,6.44387006,144.02,143.98,18.64964886]
[1750897234615,5.18344257,144.01,143.98,18.64964886]
[1750897234823,5.18344257,144.0,143.98,18.64964886]
[1750897235148,5.18344257,143.99,143.98,18.64964886]
[1750897235448,5.18344257,143.99,143.98,18.933972]
[1750897236232,0.04,144.03,143.99,0.28432314]
[1750897236435,5.18183068,144.02,144.01,18.64964886]
[1750897239745,5.18183068,144.02,144.01,7.22828536]
[1750897239923,0.04,144.03,144.01,7.22828536]
[1750897240842,0.04,144.03,144.02,0.28432314]
[1750897241038,5.21490372,144.03,144.02,0.28432314]
[1750897241229,0.04,144.03,144.02,0.28432314]
[1750897242027,0.04,144.03,144.02,25.87745207]
[1750897243044,0.04,144.03,144.02,60.96991364]
[1750897243233,0.04,144.03,144.02,62.56001364]
[1750897244853,0.04,144.03,144.02,81.474372]
[1750897245028,0.04,144.03,144.02,88.41785207]
[1750897245232,0.04,144.03,144.02,88.56001364]
[1750897246239,0.04,144.03,144.02,82.00755207]
[1750897246743,0.04,144.03,144.02,56.00755207]
[1750897248167,0.04,144.03,144.02,56.14971364]
[1750897268844,0.04,144.03,144.02,82.14971364]
[1750897273667,0.04,144.03,144.02,54.55961364]
[1750897275456,0.04,144.03,144.02,47.10964886]
[1750897275670,0.04,144.03,144.02,54.05312893]
[1750897277270,0.04,144.03,144.02,54.33745207]
[1750897277583,0.04,144.03,144.02,47.393972]
[1750897277882,5.21502134,144.03,144.02,47.393972]
[1750897278385,5.21502134,144.03,144.02,47.10964886]
[1750897280078,5.21502134,144.03,144.02,54.47961364]
[1750897280280,0.04,144.03,144.02,54.47961364]
[1750897283471,0.04,144.03,144.02,54.33745207]
[1750897283671,5.22850573,144.03,144.02,47.10964886]
[1750897284072,5.22850573,144.03,144.02,18.64964886]
[1750897284271,5.22850573,144.03,144.01,28.42]
[1750897284574,5.18850573,144.02,143.99,0.28432314]
[1750897284773,5.18850573,144.01,144.0,18.64964886]
[1750897285174,5.18850573,144.01,143.98,28.44]
[1750897285481,5.18850573,144.0,143.99,18.64964886]
[1750897288224,5.70701291,144.03,143.99,18.64964886]
[1750897288489,5.18735425,144.02,143.99,18.64964886]
[1750897288677,5.18735425,144.01,143.99,18.64964886]
[1750897288877,5.70701291,144.03,143.99,18.64964886]
[1750897289078,5.18735664,144.02,143.99,18.64964886]
[1750897289286,5.18735664,144.01,143.99,18.64964886]
[1750897289588,5.70701291,144.03,143.98,18.64964886]
[1750897289805,5.18645228,144.02,143.98,47.08964886]
[1750897290095,5.18645228,144.01,143.98,54.03493895]
[1750897290268,5.70701291,144.03,143.98,54.03493895]
[1750897290468,5.18550197,144.02,143.98,54.03493895]
[1750897290670,5.18550197,144.01,143.99,0.28432314]
[1750897290887,0.04,144.03,143.99,0.28432314]
[1750897291086,5.18550078,144.02,144.01,18.64964886]
[1750897292287,0.04,144.03,144.01,25.59361108]
[1750897292789,0.04,144.03,144.01,18.64964886]
[1750897293817,0.04,144.03,144.01,25.59360234]
[1750897301620,0.04,144.03,144.02,47.06964886]
[1750897301803,5.222491,144.03,144.02,47.06964886]
[1750897302525,5.222491,144.03,144.02,47.353972]
[1750897303896,5.222491,144.03,144.02,54.29745207]
[1750897305119,0.04,144.03,144.02,54.43961364]
[1750897307820,0.04,144.03,144.02,60.74401364]
[1750897307996,0.04,144.08,144.07,44.64964886]
[1750897308201,0.04,144.08,144.07,73.49613357]
[1750897309011,0.04,144.08,144.07,80.43720388]
[1750897316848,0.04,144.08,144.03,1.5311]
[1750897317015,0.04,144.08,144.04,47.06964886]
[1750897318261,0.04,144.08,144.04,54.01210547]
[1750897318833,0.04,144.08,144.05,0.28432314]
[1750897319019,0.04,144.08,144.07,18.64964886]
[1750897319612,0.04,144.08,144.06,18.64964886]
[1750897319822,0.04,144.08,144.06,47.06964886]
[1750897320545,0.04,144.08,144.06,54.01115725]
[1750897321718,0.04,144.08,144.06,47.06964886]
[1750897322634,0.04,144.08,144.06,54.01117569]
[1750897323441,0.04,144.08,144.06,18.64964886]
[1750897323616,5.16726649,144.07,144.06,18.64964886]
[1750897324514,0.04,144.08,144.06,18.64964886]
[1750897327035,0.04,144.08,144.07,47.06964886]
[1750897330830,0.04,144.08,144.07,54.01071917]
[1750897331244,0.04,144.08,144.07,47.06964886]
[1750897332744,0.04,144.08,144.07,54.29504231]
[1750897335926,0.04,144.08,144.07,80.43720388]
[1750897352133,0.04,144.08,144.07,54.43720388]
[1750897352342,1.5376573,144.14,144.11,44.64964886]
[1750897352535,1.5376573,144.14,144.13,18.64964886]
[1750897352762,6.72012888,144.14,144.13,18.933972]
[1750897353266,6.72012888,144.14,144.13,25.8721528]
[1750897355344,6.72012888,144.14,144.13,18.64964886]
[1750897359070,6.72012888,144.14,144.12,28.4]
[1750897359369,5.18247158,144.13,144.11,28.4]
[1750897359674,5.18247158,144.12,144.11,53.98879256]
[1750897360055,1.5376573,144.14,144.12,18.64964886]
[1750897360278,5.17476095,144.13,144.12,18.64964886]
[1750897360655,5.17476095,144.13,144.07,18.64964886]
[1750897360862,11.61863101,144.12,144.07,18.64964886]
[1750897361075,5.17476095,144.11,144.07,47.04964886]
[1750897361369,6.44387006,144.12,144.07,47.04964886]
[1750897361370,5.17476095,144.1,144.07,47.04964886]
[1750897361596,5.17476095,144.09,144.02,9.40507064]
[1750897361744,5.17476095,144.08,144.02,1.73407064]
[1750897361944,5.17476095,144.07,144.02,1.73407064]
[1750897362160,12.83187006,144.08,144.02,30.13407064]
[1750897362161,5.17476095,144.06,144.02,30.13407064]
[1750897362364,5.17476095,144.05,144.03,18.64964886]
[1750897362567,38.83187006,144.08,144.03,18.64964886]
[1750897362884,38.83187006,144.08,144.02,1.73407064]
[1750897362885,5.1763572,144.07,144.02,1.73407064]
[1750897363054,5.1763572,144.06,144.02,1.73407064]
[1750897363249,5.1763572,144.05,144.02,1.73407064]
[1750897363455,5.1763572,144.04,144.03,47.04964886]
[1750897363660,5.17485834,144.07,144.03,53.9923437]
[1750897363849,5.17485834,144.06,144.03,53.9923437]
[1750897364048,152.76407441,144.09,144.03,53.9923437]
[1750897364249,5.17400177,144.08,144.03,53.9923437]
[1750897364448,5.17400177,144.07,144.03,53.9923437]
[1750897364655,5.17400177,144.06,144.03,53.9923437]
[1750897364956,152.76407441,144.09,144.03,53.9923437]
[1750897365276,5.17399997,144.08,144.03,53.9923437]
[1750897365458,5.17399997,144.07,144.03,53.9923437]
[1750897365664,5.17399997,144.06,144.03,47.04964886]
[1750897365860,159.20795901,144.09,144.03,53.99255891]
[1750897366077,5.17348973,144.08,144.03,53.99255891]
[1750897366263,5.17348973,144.07,144.03,53.99255891]
[1750897366462,5.17348973,144.06,144.03,53.99255891]
[1750897366663,4.16408895,144.09,144.03,53.99255891]
[1750897366865,5.17266092,144.08,144.03,53.99255891]
[1750897367170,5.17266092,144.07,144.03,53.99255891]
[1750897367371,4.16408895,144.09,144.03,53.99255891]
[1750897367564,5.17209686,144.08,144.03,53.99255891]
[1750897367763,5.17209686,144.07,144.03,53.99255891]
[1750897367975,4.16408895,144.09,144.03,53.99255891]
[1750897368172,5.17209925,144.08,144.03,53.99255891]
[1750897368370,5.17209925,144.07,144.03,53.99255891]
[1750897368570,5.1716781,144.06,144.03,53.99255891]
[1750897368773,4.16408895,144.09,144.03,53.99255891]
[1750897368953,5.17179621,144.08,144.03,53.99255891]
[1750897369157,5.17179621,144.07,144.03,47.04964886]
[1750897369371,5.17179621,144.06,144.03,47.04964886]
[1750897369568,10.60795901,144.09,144.03,47.04964886]
[1750897369881,160.2157103,144.08,144.03,47.04964886]
[1750897370088,5.17184024,144.07,144.03,47.04964886]
[1750897370382,5.17184024,144.06,144.03,47.04964886]
[1750897370588,5.17184024,144.05,144.03,47.04964886]
[1750897370882,4.16464218,144.07,144.03,47.04964886]
[1750897371080,5.17096399,144.06,144.03,47.04964886]
[1750897371267,5.17096399,144.05,144.03,47.04964886]
[1750897371470,4.16464218,144.07,144.03,47.04964886]
[1750897371766,5.16997417,144.06,144.03,47.04964886]
[1750897371959,5.16997417,144.05,144.03,47.04964886]
[1750897372166,5.16997417,144.06,144.03,47.04964886]
[1750897372363,5.16997417,144.05,144.03,47.04964886]
[1750897372584,5.16997417,144.07,144.03,47.04964886]
[1750897372757,5.16997417,144.06,144.03,47.04964886]
[1750897372956,5.16997417,144.05,144.03,47.04964886]
[1750897373185,9.33464921,144.07,144.03,47.04964886]
[1750897373357,5.16997417,144.06,144.03,47.04964886]
[1750897373557,5.16997417,144.05,144.03,47.04964886]
[1750897373752,5.16997417,144.06,144.03,47.04964886]
[1750897373956,5.16997417,144.05,144.03,47.04964886]
[1750897374164,5.16997417,144.07,144.03,47.04964886]
[1750897374377,5.16997417,144.06,144.03,47.04964886]
[1750897374560,152.76445199,144.08,144.03,47.04964886]
[1750897374761,5.16712036,144.07,144.03,47.04964886]
[1750897374963,5.16712036,144.06,144.03,47.04964886]
[1750897375162,5.16639641,144.07,144.03,47.04964886]
[1750897375362,5.16639641,144.06,144.03,47.04964886]
[1750897375586,5.16639641,144.07,144.03,47.04964886]
[1750897375782,5.16639641,144.06,144.03,47.04964886]
[1750897375981,5.16639641,144.07,144.03,47.04964886]
[1750897376286,5.16639641,144.06,144.03,47.04964886]
[1750897376586,152.76445199,144.08,144.03,47.04964886]
[1750897376787,5.16571544,144.07,144.03,47.04964886]
[1750897376963,5.16571544,144.06,144.03,47.04964886]
[1750897377278,152.76445199,144.08,144.03,47.04964886]
[1750897377585,5.1648417,144.07,144.03,47.04964886]
[1750897377784,5.1648417,144.06,144.03,47.04964886]
[1750897377986,152.76445199,144.08,144.03,47.04964886]
[1750897378187,5.16484409,144.07,144.03,18.64964886]
[1750897378392,5.16484409,144.06,144.03,18.64964886]
[1750897378591,5.16484409,144.05,144.03,18.64964886]
[1750897378790,9.32973301,144.07,144.03,18.64964886]
[1750897378982,5.16484409,144.06,144.03,18.64964886]
[1750897379289,5.16484409,144.05,144.03,18.64964886]
[1750897379491,5.16484409,144.06,144.03,18.64964886]
[1750897379784,5.16484409,144.05,144.02,28.42]
[1750897380490,4.164965,144.06,144.02,28.42]
[1750897380868,9.32798202,144.06,144.02,28.42]
[1750897381191,4.164965,144.06,144.02,28.42]
[1750897381493,9.32798202,144.06,144.02,28.42]
[1750897381663,5.16301702,144.05,144.02,28.42]
[1750897382062,9.3282875,144.05,144.02,28.42]
[1750897382261,4.16527048,144.05,144.02,28.42]
[1750897382675,9.3282875,144.05,144.02,28.42]
[1750897382888,4.16527048,144.05,144.02,28.42]
[1750897383092,9.32794829,144.06,144.02,28.42]
[1750897383391,4.16493127,144.06,144.02,28.42]
[1750897383586,9.32794829,144.06,144.02,28.42]
[1750897383785,4.16493127,144.06,144.02,28.42]
[1750897383989,9.32794829,144.06,144.01,18.66964886]
[1750897384187,4.16493127,144.06,144.01,47.08964886]
[1750897384381,9.32794829,144.06,144.01,47.08964886]
[1750897384587,4.16493127,144.06,144.01,47.08964886]
[1750897384790,153.76301702,144.05,144.01,0.02]
[1750897385097,5.16097487,144.04,144.01,0.02]
[1750897386297,148.6,144.05,144.01,0.02]
[1750897386595,4.16550958,144.04,144.01,0.02]
[1750897387497,9.32455975,144.04,144.01,0.02]
[1750897387694,26.0,144.02,144.01,0.02]
[1750897387903,31.15905017,144.02,144.01,0.02]
[1750897388700,35.32513821,144.02,144.01,0.02]
[1750897389197,31.15905017,144.02,144.01,0.02]
[1750897389388,148.6,144.03,144.01,0.02]
[1750897389586,148.6,144.06,144.01,0.02]
[1750897389788,5.15522784,144.05,144.01,0.02]
[1750897391104,9.32069483,144.05,144.01,0.02]
[1750897393207,31.15522784,144.04,144.01,0.02]
[1750897393887,5.15522784,144.03,144.01,0.02]
[1750897394086,31.15522784,144.04,144.01,0.02]
[1750897394277,26.0,144.04,144.01,0.02]
[1750897394518,5.15522784,144.05,144.01,0.02]
[1750897394681,6.12,144.09,144.02,18.64964886]
[1750897394996,37.27171332,144.09,144.02,18.64964886]
[1750897395197,4.16445197,144.08,144.02,18.64964886]
[1750897396176,9.31616529,144.08,144.02,18.64964886]
[1750897398207,4.16493127,144.06,144.02,18.64964886]
[1750897398894,5.15171332,144.08,144.02,25.5930832]
[1750897399082,5.15171332,144.07,144.02,25.5930832]
[1750897399287,5.15171332,144.08,144.02,25.5930832]
[1750897399486,5.15171332,144.07,144.02,25.5930832]
[1750897399693,5.15171332,144.08,144.02,25.5930832]
[1750897399985,5.15171332,144.07,144.02,25.5930832]
[1750897400308,5.15171332,144.06,144.02,25.5930832]
[1750897400485,5.15171332,144.07,144.02,25.5930832]
[1750897400831,5.15171332,144.06,144.02,25.5930832]
[1750897401012,5.15171332,144.07,144.02,25.5930832]
[1750897401309,5.15171332,144.06,144.02,25.5930832]
[1750897401612,4.16471956,144.07,144.02,25.5930832]
[1750897401778,5.16600646,144.06,144.02,25.5930832]
[1750897401979,4.16471956,144.07,144.02,25.5930832]
[1750897402203,5.16600646,144.06,144.02,25.5930832]
[1750897402406,5.16600646,144.05,144.02,25.5930832]
[1750897402589,4.16471956,144.07,144.02,25.5930832]
[1750897402788,5.17000762,144.06,144.02,25.5930832]
[1750897403005,5.17000762,144.05,144.02,25.5930832]
[1750897403207,4.16471956,144.07,144.02,18.64964886]
[1750897403406,5.17477482,144.06,144.02,18.64964886]
[1750897403609,5.17477482,144.05,144.02,18.64964886]
[1750897403815,4.16471956,144.07,144.02,18.64964886]
[1750897403984,11.61888935,144.06,144.01,6.4656]
[1750897404179,4.16471956,144.07,144.01,6.4656]
[1750897404180,4.16550958,144.04,144.01,6.4656]
[1750897404383,5.17501929,144.03,144.01,18.66964886]
[1750897404588,5.17501929,144.02,144.01,18.66964886]
[1750897405314,5.17501929,144.02,144.01,0.02]
[1750897406607,9.34110733,144.02,144.01,0.02]
[1750897406914,5.17501929,144.02,144.01,0.02]
[1750897407714,5.17501929,144.02,144.01,18.66964886]
[1750897409613,9.34110733,144.02,144.01,0.02]
[1750897409819,9.34110733,144.02,143.99,0.02]
[1750897410118,11.6573827,144.01,143.99,0.02]
[1750897410323,5.17501929,144.0,143.99,0.02]
[1750897411712,9.34168595,144.0,143.99,0.02]
[1750897412808,5.17501929,144.0,143.99,0.02]
[1750897414430,9.34168595,144.0,143.99,0.02]
[1750897420823,5.17501929,144.0,143.99,0.02]
[1750897425042,9.34168595,144.0,143.99,0.02]
[1750897431043,35.34168595,144.0,143.99,0.02]
[1750897431230,45.75835261,144.0,143.97,0.02]
[1750897431431,17.76814085,143.99,143.97,0.02]
[1750897431737,5.17501929,143.98,143.97,0.02]
[1750897432238,9.34226474,143.98,143.97,0.02]
[1750897437936,9.76874945,143.98,143.97,0.02]
[1750897438250,26.0,143.97,143.96,0.02]
[1750897438432,37.6406075,143.97,143.96,0.02]
[1750897439124,41.8081424,143.97,143.96,0.02]
[1750897441544,35.7690389,143.97,143.96,0.02]
[1750897442329,52.89236364,143.97,143.96,0.02]
[1750897442526,77.7868125,143.97,143.95,0.02]
[1750897442739,42.86662212,143.96,143.95,0.02]
[1750897442932,47.2762179,143.96,143.95,0.02]
[1750897443338,79.86404229,143.96,143.95,0.02]
[1750897443656,55.07613357,143.94,143.93,0.02]
[1750897443857,73.16961014,143.94,143.93,0.02]
[1750897444355,60.25115286,143.94,143.93,0.02]
[1750897444563,61.77225286,143.94,143.93,0.02]
[1750897444736,26.42648471,143.91,143.9,0.02]
[1750897444933,44.17571686,143.91,143.9,0.02]
[1750897445241,44.17163657,143.91,143.9,0.02]
[1750897446439,0.42648471,143.9,143.88,0.02]
[1750897446637,16.21851884,143.9,143.88,0.02]
[1750897446968,9.77106619,143.9,143.88,0.02]
[1750897447163,19.77106619,143.9,143.88,0.02]
[1750897449058,19.77135597,143.89,143.88,0.02]
[1750897449263,21.29245597,143.89,143.88,0.02]
[1750897450950,11.29245597,143.89,143.88,0.02]
[1750897451859,11.29245597,143.89,143.79,0.02]
[1750897451860,26.0,143.86,143.79,18.66964886]
[1750897452433,31.17501929,143.86,143.79,18.66964886]
[1750897452656,31.17501929,143.86,143.79,0.02]
[1750897452657,26.42648471,143.86,143.79,0.02]
[1750897452849,38.03076231,143.86,143.79,0.02]
[1750897453069,10.0,143.85,143.79,0.02]
[1750897453273,26.0,143.81,143.79,0.02]
[1750897453562,26.0,143.8,143.79,0.02]
[1750897454066,5.17501929,143.83,143.79,1.5916]
[1750897454747,5.17501929,143.83,143.82,0.02]
[1750897455162,9.34664928,143.83,143.82,0.02]
[1750897455573,5.17501929,143.83,143.82,0.02]
[1750897455948,9.34661075,143.83,143.82,0.02]
[1750897456269,9.30601908,143.83,143.82,0.02]
[1750897456472,9.73250379,143.83,143.82,0.02]
[1750897463055,19.73250379,143.83,143.82,0.02]
[1750897463385,26.16077909,143.83,143.82,0.02]
[1750897463867,16.16077909,143.83,143.82,0.02]
[1750897464075,9.73250379,143.83,143.82,0.02]
[1750897464451,19.73250379,143.83,143.82,0.02]
[1750897464874,9.73250379,143.83,143.82,0.02]
[1750897465162,9.71734052,143.83,143.82,0.02]
[1750897465455,9.29085581,143.83,143.82,0.02]
[1750897465664,4.17159146,143.83,143.82,0.02]
[1750897467191,30.17159146,143.83,143.82,0.02]
[1750897467491,10.29139381,143.84,143.82,0.02]
[1750897467788,26.0,143.83,143.82,0.02]
[1750897468566,30.17159146,143.83,143.82,0.02]
[1750897469090,5.11926435,143.85,143.82,0.02]
[1750897469268,6.12,143.87,143.82,0.02]
[1750897469579,30.17096576,143.86,143.82,0.02]
[1750897469981,4.17096576,143.86,143.82,0.02]
[1750897470573,30.17096576,143.86,143.82,0.02]
[1750897471062,35.29023011,143.86,143.82,0.02]
[1750897474095,35.29023011,143.86,143.82,18.66964886]
[1750897474096,5.11926435,143.86,143.82,18.66964886]
[1750897474398,6.12,143.87,143.83,6.1573]
[1750897474589,5.11926435,143.86,143.83,6.1573]
[1750897476176,5.11926435,143.85,143.83,6.1573]
[1750897478198,5.11926435,143.84,143.83,24.80694886]
[1750897478505,9.29042463,143.85,143.83,6.1573]
[1750897478800,5.11926435,143.84,143.83,6.1573]
[1750897479178,5.11926435,143.84,143.82,0.02]
[1750897479380,5.11926435,143.83,143.82,0.02]
[1750897489888,5.11926435,143.83,143.82,18.66964886]
[1750897490086,5.11926435,143.83,143.82,18.953972]
[1750897490313,5.18337466,143.85,143.82,18.953972]
[1750897490508,148.6,143.86,143.82,18.953972]
[1750897490713,5.18337106,143.85,143.82,18.953972]
[1750897491010,6.12,143.87,143.83,0.28432314]
[1750897491192,5.18336866,143.86,143.83,0.28432314]
[1750897491392,5.18336866,143.85,143.83,0.28432314]
[1750897491615,6.12,143.87,143.83,0.28432314]
[1750897491815,5.18307008,143.86,143.83,0.28432314]
[1750897492018,5.18307008,143.85,143.84,18.64964886]
[1750897494296,5.18307008,143.86,143.84,18.64964886]
[1750897494615,5.18307008,143.85,143.84,18.64964886]
[1750897495317,5.18307008,143.86,143.84,18.64964886]
[1750897495519,5.18307008,143.85,143.84,18.64964886]
[1750897495706,5.18307008,143.86,143.84,18.64964886]
[1750897495897,5.18307008,143.85,143.84,18.64964886]
[1750897496101,5.18307008,143.86,143.84,18.64964886]
[1750897496305,5.18307008,143.85,143.84,18.64964886]
[1750897496608,5.18307008,143.86,143.84,18.64964886]
[1750897496806,5.18307008,143.85,143.84,18.64964886]
[1750897497003,5.18307008,143.86,143.84,18.64964886]
[1750897497203,5.18307008,143.85,143.84,18.64964886]
[1750897497408,5.18307008,143.86,143.84,18.64964886]
[1750897497618,5.18307008,143.85,143.84,18.64964886]
[1750897497821,6.12,143.87,143.82,28.46]
[1750897497822,9.35404057,143.86,143.82,28.46]
[1750897498008,9.35404057,143.86,143.82,0.02]
[1750897498009,5.18307008,143.85,143.82,0.02]
[1750897498321,4.17097049,143.86,143.82,0.02]
[1750897498322,5.18307008,143.84,143.82,0.02]
[1750897498530,4.17097049,143.86,143.82,0.02]
[1750897498819,5.18013384,143.85,143.82,0.02]
[1750897499122,5.18013384,143.84,143.82,18.66964886]
[1750897499320,4.17097049,143.86,143.82,18.66964886]
[1750897499522,5.18011751,143.85,143.82,18.66964886]
[1750897499723,5.18011751,143.84,143.82,18.66964886]
[1750897499924,4.17097049,143.86,143.82,18.66964886]
[1750897500236,5.18004188,143.85,143.82,18.66964886]
[1750897500414,5.18004188,143.84,143.82,18.66964886]
[1750897500619,4.17097049,143.86,143.82,18.66964886]
[1750897500821,5.17992414,143.85,143.82,18.66964886]
[1750897501008,5.17992414,143.84,143.82,18.66964886]
[1750897501331,4.17097049,143.86,143.82,18.66964886]
[1750897501499,5.17998891,143.85,143.82,18.66964886]
[1750897501698,5.17998891,143.84,143.82,18.66964886]
[1750897501899,4.17097049,143.86,143.82,18.66964886]
[1750897502198,5.17999156,143.85,143.82,18.66964886]
[1750897502398,5.17999156,143.84,143.82,18.66964886]
[1750897502623,4.17097049,143.86,143.82,18.66964886]
[1750897502824,9.3519364,143.85,143.82,18.66964886]
[1750897503030,5.18074411,143.84,143.82,18.66964886]
[1750897503225,5.18173603,143.83,143.82,18.66964886]
[1750897503526,5.18173603,143.83,143.82,0.02]
[1750897510110,5.18173603,143.83,143.82,18.66964886]
[1750897510313,32.12,143.87,143.82,18.66964886]
[1750897510314,16.68953401,143.87,143.82,25.90710786]
[1750897510515,5.19454043,143.86,143.82,25.90710786]
[1750897510824,5.19454043,143.85,143.82,25.90710786]